fUSD/lending_fUSD_20250521
["ID","MTS","AMOUNT","RATE_DAILY","PERIOD"]
[361848503,1747837847964,-1428.44,0.00032876,5]
[361848504,1747837847973,-420.0,0.00032876,5]
[361848505,1747837847983,-420.0,0.00032876,5]
[361848506,1747837847992,-396.46007002,0.00032876,5]
[361848507,1747837848002,-420.0,0.00032876,5]
[361848508,1747837848012,-420.0,0.00032876,5]
[361848509,1747837848021,-420.0,0.00032876,5]
[361848510,1747837848031,-420.0,0.00032876,5]
[361848511,1747837848041,-420.0,0.00032876,5]
[361848512,1747837848050,-420.0,0.00032876,5]
[361848513,1747837848060,-616.03,0.00032876,5]
[361848514,1747837848073,-420.0,0.00032876,5]
[361848515,1747837848084,-420.0,0.00032876,5]
[361848516,1747837848094,-420.0,0.00032876,5]
[361848517,1747837848104,-1251.98,0.00032876,5]
[361848518,1747837848115,-420.0,0.00032876,5]
[361848519,1747837848125,-420.0,0.00032876,5]
[361848520,1747837848136,-420.0,0.00032876,5]
[361848521,1747837848147,-420.0,0.00032876,5]
[361848522,1747837848156,-420.0,0.00032876,5]
[361848523,1747837848166,-269.28412359,0.00032876,5]
[361848524,1747837848579,-150.71587641,0.00032876,5]
[361848525,1747837848590,-151.15303197,0.00032876,5]
[361848526,1747837848600,-420.0,0.00032876,5]
[361848527,1747837848611,-26.53598661,0.00032876,5]
[361848528,1747837848622,-393.46401339,0.00032876,5]
[361848529,1747837848632,-439.39,0.00032876,5]
[361848530,1747837848642,-33.37604385,0.00032876,5]
[361848531,1747837848654,-386.62395615,0.00032876,5]
[361848532,1747837848664,-160.46258631,0.00032876,5]
[361848533,1747837848683,-259.53741369,0.00032876,5]
[361848534,1747837848693,-848.7,0.00032876,5]
[361848535,1747837848702,-420.0,0.00032876,5]
[361848536,1747837848712,-842.08,0.00032876,5]
[361848537,1747837848721,-420.0,0.00032876,5]
[361848538,1747837848731,-180.28379385,0.00032876,5]
[361848539,1747837848741,-420.0,0.00032876,5]
[361848540,1747837848751,-420.0,0.00032876,5]
[361848541,1747837848760,-420.0,0.00032876,5]
[361848542,1747837848770,-1189.05,0.00032876,5]
[361848543,1747837848780,-303.82617943,0.00032876,5]
[361848544,1747837848790,-593.49,0.00032876,5]
[361848545,1747837848800,-420.0,0.00032876,5]
[361848546,1747837848809,-420.0,0.00032876,5]
[361848547,1747837848819,-420.0,0.00032876,5]
[361848548,1747837848830,-420.0,0.00032876,5]
[361848549,1747837848839,-420.0,0.00032876,5]
[361848550,1747837848850,-486.12332506,0.00032876,5]
[361848551,1747837848860,-1152.4,0.00032876,5]
[361848552,1747837848870,-2188.7,0.00032876,5]
[361848553,1747837848879,-420.0,0.00032876,5]
[361848554,1747837848889,-420.0,0.00032876,5]
[361848555,1747837848899,-123.07019087,0.00032876,5]
[361848556,1747837848911,-278.80209907,0.00032876,5]
[361848557,1747837848921,-240.42681027,0.00032876,5]
[361848558,1747837848931,-420.0,0.00032876,5]
[361848559,1747837848941,-4452.03209066,0.00032876,5]
[361848560,1747837848953,-2125.54576745,0.00032876,5]
[361848561,1747837848966,-3829.22214189,0.00032876,5]
[361848562,1747837848975,-593.81,0.00032876,5]
[361848563,1747837848985,-420.0,0.00032876,5]
[361848564,1747837848995,-1705.09,0.00032876,5]
[361848565,1747837849004,-420.0,0.00032876,5]
[361848566,1747837849014,-420.0,0.00032876,5]
[361848567,1747837849024,-780.84,0.00032876,5]
[361848568,1747837849033,-799.84,0.00032876,5]
[361848569,1747837849043,-1183.22,0.00032876,5]
[361848570,1747837849053,-420.0,0.00032876,5]
[361848571,1747837849062,-387.39347816,0.00032876,5]
[361848572,1747837849076,-420.0,0.00032876,5]
[361848573,1747837849086,-420.0,0.00032876,5]
[361848574,1747837849096,-420.0,0.00032876,5]
[361848575,1747837849106,-1466.3,0.00032876,5]
[361848576,1747837849116,-846.04,0.00032876,5]
[361848577,1747837849126,-420.0,0.00032876,5]
[361848578,1747837849136,-610.71,0.00032876,5]
[361848579,1747837849146,-420.0,0.00032876,5]
[361848580,1747837849156,-3066.28,0.00032876,5]
[361848581,1747837849168,-420.0,0.00032876,5]
[361848582,1747837849178,-1305.36,0.00032876,5]
[361848583,1747837849188,-9822.4,0.00032876,5]
[361848584,1747837849199,-687.9,0.00032876,5]
[361848585,1747837849209,-420.0,0.00032876,5]
[361848586,1747837849219,-420.0,0.00032876,5]
[361848587,1747837849228,-2720.77,0.00032876,5]
[361848588,1747837849239,-11185.35,0.00032876,5]
[361848589,1747837849250,-420.0,0.00032876,5]
[361848590,1747837849260,-420.0,0.00032876,5]
[361848591,1747837849270,-420.0,0.00032876,5]
[361848592,1747837849280,-5044.03,0.00032876,5]
[361848593,1747837849290,-399.92133909,0.00032876,5]
[361848594,1747837849301,-420.0,0.00032876,5]
[361848595,1747837849311,-420.0,0.00032876,5]
[361848596,1747837849321,-420.0,0.00032876,5]
[361848597,1747837849330,-420.0,0.00032876,5]
[361848598,1747837849340,-5058.47,0.00032876,5]
[361848599,1747837849350,-919.57,0.00032876,5]
[361848600,1747837849360,-11646.9,0.00032876,5]
[361848601,1747837849370,-420.0,0.00032876,5]
[361848602,1747837849380,-420.0,0.00032876,5]
[361848603,1747837849389,-872.75,0.00032876,5]
[361848604,1747837849399,-865.84,0.00032876,5]
[361848605,1747837849410,-22455.05,0.00032876,5]
[361848606,1747837849419,-420.0,0.00032876,5]
[361848607,1747837849429,-420.0,0.00032876,5]
[361848608,1747837849439,-655.69,0.00032876,5]
[361848609,1747837849448,-420.0,0.00032876,5]
[361848610,1747837849458,-765.33,0.00032876,5]
[361848611,1747837849467,-2116.95,0.00032876,5]
[361848612,1747837849477,-420.0,0.00032876,5]
[361848613,1747837849486,-420.0,0.00032876,5]
[361848614,1747837849496,-420.0,0.00032876,5]
[361848615,1747837849506,-420.0,0.00032876,5]
[361848616,1747837849516,-420.0,0.00032876,5]
[361848617,1747837849525,-1758.52,0.00032876,5]
[361848618,1747837849537,-420.0,0.00032876,5]
[361848619,1747837849546,-2707.9,0.00032876,5]
[361848620,1747837849556,-2160.22,0.00032876,5]
[361848621,1747837849565,-992.86,0.00032876,5]
[361848622,1747837849575,-420.0,0.00032876,5]
[361848623,1747837849584,-860.9,0.00032876,5]
[361848624,1747837849593,-420.0,0.00032876,5]
[361848625,1747837849603,-440.75,0.00032876,5]
[361848626,1747837849612,-788.81,0.00032876,5]
[361848627,1747837849622,-2681.71,0.00032876,5]
[361848628,1747837849631,-420.0,0.00032876,5]
[361848629,1747837849641,-420.0,0.00032876,5]
[361848630,1747837849650,-420.0,0.00032876,5]
[361848631,1747837849660,-1692.01,0.00032876,5]
[361848632,1747837849670,-3320.41,0.00032876,5]
[361848633,1747837849679,-487.31660777,0.00032876,5]
[361848634,1747837849689,-337.43119643,0.00032876,5]
[361848635,1747837849698,-420.0,0.00032876,5]
[361848636,1747837849708,-420.0,0.00032876,5]
[361848637,1747837849718,-420.0,0.00032876,5]
[361848638,1747837849729,-1540.69,0.00032876,5]
[361848639,1747837849738,-420.0,0.00032876,5]
[361848640,1747837849748,-614.8,0.00032876,5]
[361848641,1747837849758,-513.60784404,0.00032876,5]
[361848642,1747837849768,-420.0,0.00032876,5]
[361848643,1747837849777,-420.0,0.00032876,5]
[361848644,1747837849788,-2884.92,0.00032876,5]
[361848645,1747837849798,-625.25,0.00032876,5]
[361848646,1747837849809,-420.0,0.00032876,5]
[361848647,1747837849818,-1515.83,0.00032876,5]
[361848648,1747837849828,-420.0,0.00032876,5]
[361848649,1747837849838,-420.0,0.00032876,5]
[361848650,1747837849849,-188.61148865,0.00032876,5]
[361848651,1747837849859,-420.0,0.00032876,5]
[361848652,1747837849868,-420.0,0.00032876,5]
[361848653,1747837849878,-10946.08,0.00032876,5]
[361848654,1747837849887,-420.0,0.00032876,5]
[361848655,1747837849897,-420.0,0.00032876,5]
[361848656,1747837849907,-172.325,0.00032876,5]
[361848657,1747837849918,-3108.17,0.00032876,5]
[361848658,1747837849927,-521.30882945,0.00032876,5]
[361848659,1747837849937,-1428.79,0.00032876,5]
[361848660,1747837849946,-291.18071555,0.00032876,5]
[361848661,1747837849956,-2286.52,0.00032876,5]
[361848662,1747837849966,-1910.73,0.00032876,5]
[361848663,1747837849975,-581.76,0.00032876,2]
[361848664,1747837849985,-732.93,0.00032876,5]
[361848665,1747837849994,-420.0,0.00032876,5]
[361848666,1747837850003,-1318.89,0.00032876,5]
[361848667,1747837850013,-1853.95,0.00032876,5]
[361848668,1747837850022,-420.0,0.00032876,5]
[361848669,1747837850032,-420.0,0.00032876,5]
[361848670,1747837850042,-1108.82,0.00032876,5]
[361848671,1747837850051,-420.0,0.00032876,5]
[361848672,1747837850062,-621.51,0.00032876,5]
[361848673,1747837850075,-420.0,0.00032876,5]
[361848674,1747837850084,-420.0,0.00032876,5]
[361848675,1747837850094,-420.0,0.00032876,5]
[361848676,1747837850103,-4108.99,0.00032876,5]
[361848677,1747837850113,-756.41,0.00032876,5]
[361848678,1747837850122,-532.33,0.00032876,5]
[361848679,1747837850132,-420.0,0.00032876,5]
[361848680,1747837850142,-1792.77,0.00032876,5]
[361848681,1747837850153,-1029.92,0.00032876,5]
[361848682,1747837850163,-407.78199024,0.00032876,5]
[361848685,1747837958959,150.0,0.00014,5]
[361848686,1747838021280,1749.0,0.00027397,120]
[361848687,1747838246051,-70123.36816081,0.00042321,30]
[361848688,1747838246077,-16800.0,0.00042321,120]
[361848689,1747838246102,-1436.0,0.00042321,30]
[361848690,1747838246126,-2937.0,0.00042321,30]
[361848691,1747838246164,-342.0,0.00042321,120]
[361848692,1747838246193,-362.52243138,0.00042321,120]
[361848693,1747838246223,-2216.37569932,0.00042321,90]
[361848694,1747838246253,-3238.14143236,0.00042321,30]
[361848695,1747838246278,-3332.81165111,0.00042321,120]
[361848696,1747838246304,-518.77631007,0.00042321,30]
[361848697,1747838246329,-387.72064604,0.00042321,30]
[361848698,1747838246355,-68189.75071608,0.00042321,30]
[361848699,1747838246381,-3523.84874303,0.00042321,30]
[361848700,1747838246406,-971.34666349,0.00042321,91]
[361848701,1747838246431,-731.72729736,0.00042321,30]
[361848702,1747838246457,-87797.01198257,0.00042321,30]
[361848703,1747838246484,-889.40225201,0.00042321,30]
[361848704,1747838246511,-1000.0,0.00042321,30]
[361848705,1747838246535,-2823.51572416,0.00042321,30]
[361848706,1747838246559,-2418.71920612,0.00042321,30]
[361848707,1747838246584,-1060.66223586,0.00042321,30]
[361848708,1747838246608,-2860.46872999,0.00042321,120]
[361848709,1747838246639,-544.76221789,0.00042321,30]
[361848710,1747838246665,-2788.72051392,0.00042321,120]
[361848711,1747838246691,-759.98705209,0.00042321,120]
[361848712,1747838246717,-2035.25987034,0.00042321,30]
[361848713,1747838246745,-758.94673878,0.00042321,120]
[361848714,1747838246772,-750.52523838,0.00042321,30]
[361848715,1747838246799,-3819.43887442,0.00042321,30]
[361848716,1747838246826,-5986.05838698,0.00042321,30]
[361848717,1747838246854,-5041.64441735,0.00042321,30]
[361848718,1747838246879,-500.0,0.00042321,30]
[361848719,1747838246905,-2408.96157138,0.00042321,120]
[361848720,1747838246930,-1000.0,0.00042321,60]
[361848721,1747838246955,-392.17633951,0.00042321,120]
[361848722,1747838246981,-2500.0,0.00042321,30]
[361848723,1747838247007,-490.84605721,0.00042321,120]
[361848724,1747838247033,-318.9952041,0.00042321,120]
[361848725,1747838247058,-1000.0,0.00042321,30]
[361848726,1747838247082,-5096.64625026,0.00042321,30]
[361848727,1747838247106,-861.48948795,0.00042321,120]
[361848728,1747838247137,-3193.0,0.00042321,120]
[361848729,1747838247162,-3193.0,0.00042321,120]
[361848730,1747838247188,-3193.0,0.00042321,120]
[361848731,1747838247214,-1000.0,0.00042321,60]
[361848732,1747838247243,-3193.0,0.00042321,120]
[361848733,1747838247270,-3193.0,0.00042321,120]
[361848734,1747838247300,-3193.0,0.00042321,120]
[361848735,1747838247327,-3193.0,0.00042321,120]
[361848736,1747838247355,-3193.0,0.00042321,120]
[361848737,1747838247383,-3193.0,0.00042321,120]
[361848738,1747838247410,-3193.0,0.00042321,120]
[361848739,1747838247437,-871.17769216,0.00042321,30]
[361848740,1747838247464,-3193.0,0.00042321,120]
[361848741,1747838247495,-3193.0,0.00042321,120]
[361848742,1747838247524,-3193.0,0.00042321,120]
[361848743,1747838247551,-3193.0,0.00042321,120]
[361848744,1747838247578,-3193.0,0.00042321,120]
[361848745,1747838247608,-3193.0,0.00042321,120]
[361848746,1747838247640,-3193.0,0.00042321,120]
[361848747,1747838247668,-3193.0,0.00042321,120]
[361848748,1747838247697,-3193.0,0.00042321,120]
[361848749,1747838247725,-3193.0,0.00042321,120]
[361848750,1747838247754,-3193.0,0.00042321,120]
[361848751,1747838247781,-3193.0,0.00042321,120]
[361848752,1747838247809,-3193.0,0.00042321,120]
[361848753,1747838247838,-3193.01317086,0.00042321,120]
[361848754,1747838247863,-3000.0,0.00042321,30]
[361848755,1747838247891,-879.50986097,0.00042321,30]
[361848756,1747838247918,-1569.74680864,0.00042321,90]
[361848757,1747838247945,-1000.0,0.00042321,30]
[361848758,1747838247971,-166.67439561,0.00042321,120]
[361848759,1747838248001,-947.35584,0.00042321,30]
[361848760,1747838248334,-226.01875287,0.00042321,120]
[361848761,1747838248361,-1547.23329016,0.00042321,120]
[361848762,1747838248386,-212.03788024,0.00042321,30]
[361848763,1747838248412,-1000.0,0.00042321,30]
[361848764,1747838248439,-978.70317554,0.00042321,30]
[361848765,1747838248465,-740.62766203,0.00042321,120]
[361848766,1747838248496,-1455.57645077,0.00042321,120]
[361848767,1747838248523,-733.10330597,0.00042321,120]
[361848768,1747838248549,-295.2271822,0.00042321,120]
[361848769,1747838248576,-2561.84491398,0.00042321,120]
[361848770,1747838248603,-1030.35718602,0.00042321,30]
[361848771,1747838248631,-626.59487056,0.00042321,120]
[361848772,1747838248659,-357.71266707,0.00042321,30]
[361848773,1747838248687,-1000.0,0.00042321,30]
[361848774,1747838248714,-472.60906309,0.00042321,120]
[361848775,1747838248745,-684.13206139,0.00042321,30]
[361848776,1747838248771,-213.92963527,0.00042321,30]
[361848777,1747838248797,-768.103092,0.00042321,30]
[361848778,1747838248828,-1550.25835082,0.00042321,120]
[361848779,1747838248856,-1000.0,0.00042321,30]
[361848780,1747838248882,-295.21407947,0.00042321,31]
[361848781,1747838248908,-1030.1952794,0.00042321,30]
[361848782,1747838248935,-1000.0,0.00042321,120]
[361848783,1747838248962,-3227.80558456,0.00042321,120]
[361848784,1747838248993,-1230.89039331,0.00042321,120]
[361848785,1747838249019,-3705.74426765,0.00042321,30]
[361848786,1747838249046,-187.23998438,0.00042321,120]
[361848787,1747838249073,-1000.0,0.00042321,30]
[361848788,1747838249100,-439.64339138,0.00042321,120]
[361848789,1747838249127,-487.56297017,0.00042321,120]
[361848790,1747838249154,-804.95419803,0.00042321,30]
[361848791,1747838249180,-3137.38998043,0.00042321,30]
[361848792,1747838249210,-987.11778898,0.00042321,30]
[361848793,1747838249241,-853.32119193,0.00042321,30]
[361848794,1747838249270,-3308.35322377,0.00042321,30]
[361848795,1747838249300,-269.75351586,0.00042321,120]
[361848796,1747838249326,-1000.0,0.00042321,30]
[361848797,1747838249354,-719.97276734,0.00042321,30]
[361848798,1747838249382,-756.27001098,0.00042321,120]
[361848799,1747838249408,-1000.0,0.00042321,30]
[361848800,1747838249434,-1164.04513447,0.00042321,30]
[361848801,1747838249460,-900.24287954,0.00042321,30]
[361848802,1747838249489,-2120.14994341,0.00042321,30]
[361848803,1747838249515,-1000.0,0.00042321,30]
[361848804,1747838249541,-567.79548088,0.00042321,120]
[361848805,1747838249567,-4877.81819502,0.00042321,120]
[361848806,1747838249594,-2687.42407035,0.00042321,30]
[361848807,1747838249620,-6653.54091717,0.00042321,30]
[361848808,1747838249646,-458.07479006,0.00042321,30]
[361848809,1747838249672,-1011.22441756,0.00042321,120]
[361848810,1747838249698,-1225.51057311,0.00042321,120]
[361848811,1747838249725,-1000.0,0.00042321,30]
[361848812,1747838249754,-2115.3690005,0.00042321,120]
[361848813,1747838249779,-980.87595553,0.00042321,120]
[361848814,1747838249804,-493.56415268,0.00042321,30]
[361848815,1747838249830,-556.3312871,0.00042321,30]
[361848816,1747838249856,-219.74410198,0.00042321,120]
[361848817,1747838249881,-2743.09602527,0.00042321,30]
[361848818,1747838249907,-1746.98491524,0.00042321,30]
[361848819,1747838249932,-2548.77770039,0.00042321,30]
[361848820,1747838249958,-687.96787852,0.00042321,30]
[361848821,1747838249984,-973.56262813,0.00042321,120]
[361848822,1747838250012,-2404.73987492,0.00042321,30]
[361848823,1747838250037,-572.27746856,0.00042321,30]
[361848824,1747838250063,-531.71003928,0.00042321,30]
[361848825,1747838250088,-207.66208935,0.00042321,30]
[361848826,1747838250113,-648.0112233,0.00042321,60]
[361848827,1747838250138,-1790.69755746,0.00042321,30]
[361848828,1747838250163,-31319.15989534,0.00042321,30]
[361848829,1747838250188,-4785.81140054,0.00042321,30]
[361848830,1747838250217,-2370.72550602,0.00042321,30]
[361848831,1747838250245,-1068.93570514,0.00042321,120]
[361848832,1747838250270,-431.75491901,0.00042321,30]
[361848833,1747838250297,-423.03414022,0.00042321,120]
[361848834,1747838250323,-70776.90176021,0.00042321,30]
[361848835,1747838250349,-234043.64974675,0.00042321,120]
[361848836,1747838250374,-173.19971331,0.00042321,120]
[361848837,1747838250400,-1489.67064391,0.00042321,30]
[361848838,1747838250427,-352.97285368,0.00042321,120]
[361848839,1747838250454,-10000.000001,0.00042321,30]
[361848840,1747838250481,-3610.21723807,0.00042321,30]
[361848841,1747838250511,-59394.19692488,0.00042321,30]
[361848842,1747838250539,-691.54559218,0.00042321,120]
[361848843,1747838250565,-335.84068121,0.00042321,30]
[361848844,1747838250593,-1800.25432909,0.00042321,120]
[361848845,1747838250618,-756.0,0.00042321,120]
[361848846,1747838250644,-2238.32665245,0.00042321,30]
[361848847,1747838250671,-2670.45995263,0.00042321,120]
[361848848,1747838250696,-1132.14828088,0.00042321,120]
[361848849,1747838250722,-610.55395688,0.00042321,120]
[361848850,1747838250749,-3225.14042808,0.00042321,30]
[361848851,1747838250774,-2068.71942856,0.00042321,30]
[361848852,1747838250799,-486.14280139,0.00042321,120]
[361848853,1747838250826,-280.0931962,0.00042321,120]
[361848854,1747838251029,-266.77760185,0.00042321,30]
[361848855,1747838251056,-3581.70116276,0.00042321,120]
[361848856,1747838251082,-434.71101594,0.00042321,30]
[361848857,1747838251108,-2877.56738423,0.00042321,120]
[361848858,1747838251134,-160.73861251,0.00042321,120]
[361848859,1747838251160,-281.8218824,0.00042321,30]
[361848860,1747838251185,-183.16376177,0.00042321,120]
[361848861,1747838251214,-2692.91529941,0.00042321,45]
[361848862,1747838251243,-333.6555241,0.00042321,120]
[361848863,1747838251272,-170.23883238,0.00042321,120]
[361848864,1747838251298,-1000.0,0.00042321,60]
[361848865,1747838251323,-1082.57000173,0.00042321,30]
[361848866,1747838251348,-444.28614394,0.00042321,60]
[361848867,1747838251373,-1576.83431957,0.00042321,120]
[361848868,1747838251399,-263.65328225,0.00042321,30]
[361848869,1747838251424,-3005.88835736,0.00042321,120]
[361848870,1747838251451,-2200.22807829,0.00042321,120]
[361848871,1747838251477,-1000.0,0.00042321,30]
[361848872,1747838251505,-364.33052216,0.00042321,60]
[361848873,1747838251530,-1000.0,0.00042321,30]
[361848874,1747838251559,-50000.0,0.00042321,30]
[361848875,1747838251588,-50000.0,0.00042321,31]
[361848876,1747838251615,-50000.0,0.00042321,32]
[361848877,1747838251645,-50000.0,0.00042321,33]
[361848878,1747838251672,-50000.0,0.00042321,34]
[361848879,1747838251700,-50000.0,0.00042321,35]
[361848880,1747838251727,-50000.0,0.00042321,36]
[361848881,1747838251758,-50000.0,0.00042321,37]
[361848882,1747838251788,-50000.0,0.00042321,38]
[361848883,1747838251816,-50000.0,0.00042321,39]
[361848884,1747838251842,-525.95069533,0.00042321,120]
[361848885,1747838251874,-1018.78546617,0.00042321,120]
[361848886,1747838251899,-2187.0,0.00042321,30]
[361848887,1747838251924,-749.0,0.00042321,120]
[361848888,1747838251949,-188.62199149,0.00042321,120]
[361848889,1747838251974,-1000.0,0.00042321,120]
[361848890,1747838252003,-1092.0,0.00042321,80]
[361848891,1747838252028,-400.8203944,0.00042321,120]
[361848892,1747838252053,-1878.0,0.00042321,60]
[361848893,1747838252079,-1093.0,0.00042321,30]
[361848894,1747838252104,-10171.0972041,0.00042321,31]
[361848895,1747838252132,-10157.39689767,0.00042321,120]
[361848896,1747838252157,-3754.779999,0.00042321,30]
[361848897,1747838252182,-161.66563986,0.00042321,30]
[361848898,1747838252212,-547.0,0.00042321,30]
[361848899,1747838252237,-4941.82647242,0.00042321,120]
[361848900,1747838252267,-3120.67693301,0.00042321,120]
[361848901,1747838252293,-1000.0,0.00042321,120]
[361848902,1747838252319,-1000.0,0.00042321,120]
[361848903,1747838252344,-1000.0,0.00042321,60]
[361848904,1747838252369,-1000.0,0.00042321,30]
[361848905,1747838252396,-104534.57989499,0.00042321,120]
[361848906,1747838252421,-200.64789814,0.00042321,30]
[361848907,1747838252447,-1978.29875261,0.00042321,30]
[361848908,1747838252474,-16255.45834,0.00042321,120]
[361848909,1747838252503,-1089.0,0.00042321,120]
[361848910,1747838252531,-273.0,0.00042321,30]
[361848911,1747838252558,-1000.0,0.00042321,120]
[361848912,1747838252586,-1385360.05355257,0.00042321,60]
[361848913,1747838262609,-121340.72865432,0.00042321,60]
[361848914,1747838262633,-2080.36449027,0.00042321,120]
[361848915,1747838262658,-726380.0,0.00042321,60]
[361848916,1747838262683,-727.43561631,0.00042321,30]
[361848917,1747838262709,-1000.0,0.00042321,120]
[361848918,1747838262734,-1000.0,0.00042321,120]
[361848919,1747838262759,-1000.0,0.00042321,120]
[361848920,1747838262786,-1000.0,0.00042321,120]
[361848921,1747838262810,-1000.0,0.00042321,120]
[361848922,1747838262835,-1000.0,0.00042321,120]
[361848923,1747838262861,-1000.0,0.00042321,120]
[361848924,1747838262886,-1000.0,0.00042321,120]
[361848925,1747838262911,-1000.0,0.00042321,120]
[361848926,1747838262936,-1000.0,0.00042321,120]
[361848927,1747838262962,-1000.0,0.00042321,120]
[361848928,1747838262987,-1000.0,0.00042321,120]
[361848929,1747838263013,-1000.0,0.00042321,120]
[361848930,1747838263038,-1000.0,0.00042321,120]
[361848931,1747838263063,-1000.0,0.00042321,120]
[361848932,1747838263090,-287.63336323,0.00042321,120]
[361848933,1747838263114,-4538.43541,0.00042321,120]
[361848934,1747838263139,-1076.0,0.00042321,30]
[361848935,1747838263164,-1076.0,0.00042321,30]
[361848936,1747838263188,-1076.0,0.00042321,30]
[361848937,1747838263215,-1076.0,0.00042321,30]
[361848938,1747838297597,274.0,0.00042321,30]
[361848939,1747838301093,3000.0,0.00042321,30]
[361848940,1747838324685,21337.99282035,0.00042321,120]
[361848941,1747838399600,-319.47747817,0.000121,2]
[361848942,1747838399636,-150.0,0.00013698,2]
[361848943,1747838399657,-163.73047666,0.00015068,2]
[361848944,1747838399668,-155.74700151,0.00020622,2]
[361848945,1747838399689,-44.25299849,0.00020622,2]
[361848946,1747838399700,-105.74700151,0.00022163,2]
[361848947,1747838399724,-87.04504366,0.00022163,2]
[361848948,1747838418908,1000.0,0.00042274,30]
[361848949,1747838525201,151.0,0.00042274,120]
[361848950,1747838525674,1000.0,0.00042274,120]
[361848951,1747838525773,500.0,0.00042274,120]
[361848952,1747838525896,500.0,0.00042274,120]
[361848953,1747838526025,151.0,0.00042274,120]
[361848954,1747838526469,1037.0,0.00042274,120]
[361848955,1747838526505,518.5,0.00042274,120]
[361848956,1747838526536,151.0,0.00042274,120]
[361848957,1747838526571,518.5,0.00042274,120]
[361848958,1747838527144,156.587,0.00042274,120]
[361848959,1747838527173,537.6845,0.00042274,120]
[361848960,1747838527203,537.6845,0.00042274,120]
[361848961,1747838527238,1075.369,0.00042274,120]
[361848962,1747838527480,156.0,0.00042274,30]
[361848963,1747838527819,162.380719,0.00042274,120]
[361848964,1747838527851,557.5788265,0.00042274,120]
[361848965,1747838527882,557.5788265,0.00042274,120]
[361848966,1747838528419,1115.157653,0.00042274,120]
[361848967,1747838528461,168.3888056,0.00042274,120]
[361848968,1747838528537,578.20924308,0.00042274,120]
[361848969,1747838528569,578.20924308,0.00042274,120]
[361848970,1747838529077,1115.157653,0.00042274,120]
[361848971,1747838529129,174.61919141,0.00042274,120]
[361848972,1747838529229,599.60298507,0.00042274,120]
[361848973,1747838529298,599.60298507,0.00042274,120]
[361848974,1747838529780,174.61919141,0.00042274,120]
[361848975,1747838529854,621.78829552,0.00042274,120]
[361848976,1747838529930,621.78829552,0.00042274,120]
[361848977,1747838530531,621.78829552,0.00042274,120]
[361848978,1747838530623,621.78829552,0.00042274,120]
[361848979,1747838533195,200.0,0.00042274,120]
[361848980,1747838534030,207.4,0.00042274,120]
[361848981,1747838534463,215.0738,0.00042274,120]
[361848982,1747838535158,223.0315306,0.00042274,120]
[361848983,1747838535798,231.28369723,0.00042274,120]
[361848984,1747838537078,239.84119403,0.00042274,120]
[361848985,1747838537431,248.71531821,0.00042274,120]
[361848986,1747838538126,257.91778498,0.00042274,120]
[361848987,1747838538762,267.46074303,0.00042274,120]
[361848988,1747838539412,277.35679052,0.00042274,120]
[361848989,1747838540024,287.61899177,0.00042274,120]
[361848990,1747838540695,298.26089446,0.00042274,120]
[361848991,1747838541379,309.29654756,0.00042274,120]
[361848992,1747838542017,320.74051982,0.00042274,120]
[361848993,1747838542696,332.60791905,0.00042274,120]
[361848994,1747838543572,344.91441206,0.00042274,120]
[361848995,1747838544023,357.6762453,0.00042274,120]
[361848996,1747838544720,370.91026638,0.00042274,120]
[361848997,1747838573484,350.0,0.00042274,30]
[361848998,1747838646306,499.99,0.00027397,120]
[361848999,1747838651857,152.0,0.00042274,120]
[361849000,1747838709469,379.58,0.00042274,120]
[361849001,1747838725637,1678.28,0.00042272,60]
[361849003,1747838735853,-153.09,0.00013699,2]
[361849004,1747838807124,-206.50242003,0.00021392,2]
[361849005,1747838827087,330.69929505,0.00042272,120]